Cogmind - Beta 15 @@@ ROGUE MODE // 2025.07.16 @ 20:58:44 Player: Rockstar Result: Self-destructed Performance ------------- Evolutions (4) 2000 Regions Visited (4) 800 Robots Destroyed (11) 55 Value Destroyed (228) 228 Prototype IDs (14) 280 Alien Tech Used (0) 0 Bonus (800) 800 TOTAL SCORE: 4163 Bonus ------- Registered with UFD 300 Met Optimus in HQ 500 Cogmind --------- Core Integrity 516/850 Matter 82/300 Energy 100/100 System Corruption 0% Temperature Cool (0) Movement Rolling (200) Ox8 Location -6/Factory Parts ------- > --- POWER (2) -------- (None) > --- PROPULSION (3) --- Wheel > --- UTILITY (8) ------ Huge Storage Unit Improved Signal Interpreter Improved Terrain Scan Processor Advanced ECM Suite > --- WEAPON (2) ------- (None) > --- INVENTORY (25) --- Light Ion Engine Light Ion Engine Wheel Wheel Wheel Armored Huge Wheel Heat Sink Improved Heat Sink High-capacity Battery (250) Structural Scanner Advanced Sensor Array IFF Parser Plasma Rifle Thermic Laser Beam Cannon Light Cannon Datajack Chainsword DRS Beacon (Ready) Botcube Peak State ------------ > --- POWER ------------ Ion Engine Ion Engine > --- PROPULSION ------- Wheel Armored Huge Wheel > --- UTILITY ---------- Huge Storage Unit Improved Sensor Array Improved Signal Interpreter Improved Terrain Scan Processor Advanced ECM Suite Hardened Light Armor Plating Hardened Light Armor Plating Hardened Light Armor Plating > --- WEAPON ----------- Light Cannon Chainsword > --- INVENTORY -------- Light Ion Engine Light Ion Engine Wheel Wheel Wheel Wheel Wheel Armored Huge Wheel Heat Sink Improved Heat Sink High-capacity Battery Structural Scanner Advanced Sensor Array IFF Parser Plasma Rifle Thermic Laser Beam Cannon Light Cannon Light Cannon Light Cannon Datajack DRS Beacon Botcube [Rating: 42] Favorites ----------- Power Ion Engine Engine Ion Engine Power Core Light Fission Core Propulsion Wheel Treads Light Treads Wheel Wheel Utility Huge Storage Unit Device Terrain Scanner Storage Huge Storage Unit Processor Improved Terrain Scan Processor Protection Light Armor Plating Weapon Light Cannon Ballistic Gun Assault Rifle Ballistic Cannon Light Cannon Slashing Weapon Chainsword Special Melee Weapon Datajack Build | -11 -10 -10 -8 -6 ------- Run | Yrd Mat Sub Scr Fac Slots Evolved 8 | . . . . 8 Power 1 | . . . . 1 Propulsion 1 | . . . . 1 Utility 6 | . . . . 6 Weapon . | . . . . . Parts Attached 37 | 6 7 2 3 19 Power 3 | 1 . . . 2 Engine 2 | 1 . . . 1 Core 1 | . . . . 1 Reactor . | . . . . . Propulsion 8 | 2 4 . . 2 Treads 2 | 2 . . . . Leg . | . . . . . Wheel 6 | . 4 . . 2 Hover . | . . . . . Flight . | . . . . . Utility 15 | 1 2 1 . 11 Device 6 | . . 1 . 5 Storage 2 | 1 1 . . . Processor 2 | . . . . 2 Hackware . | . . . . . Protection 5 | . 1 . . 4 Artifact . | . . . . . Weapon 11 | 2 1 1 3 4 Energy Gun . | . . . . . Energy Cannon . | . . . . . Ballistic Gun 3 | 2 . . . 1 Ballistic Cannon 6 | . 1 1 2 2 Launcher . | . . . . . Special Weapon . | . . . . . Impact Weapon . | . . . . . Slashing Weapon 1 | . . . . 1 Piercing Weapon . | . . . . . Special Melee Weapon 1 | . . . 1 . Unidentified Prototypes . | . . . . . Parts Lost 17 | . . . . 17 Power 3 | . . . . 3 Propulsion 3 | . . . . 3 Utility 6 | . . . . 6 Weapon 5 | . . . . 5 Highest Loss Streak 15 | . . . . 15 To Critical Strikes . | . . . . . Average Backups 17 | 5 9 22 23 18 Power 2 | . 2 3 3 2 Propulsion 3 | 4 1 5 5 4 Utility 5 | . 3 6 7 4 Weapon 5 | . 1 7 7 6 Tool/Special . | . . . . . Unused Backups 17 | . 3 . 3 11 Power 2 | . . . . 2 Propulsion 6 | . 3 . . 3 Utility 4 | . . . 1 3 Weapon 5 | . . . 2 3 Tool/Special . | . . . . . Average Slot Usage (%) 95 | . 95 100 100 87 Engine 13 | . 13 14 14 10 Treads 3 | . 9 . . . Wheel 22 | . 18 28 28 15 Device 10 | . . 7 14 17 Storage 12 | . 14 14 14 6 Processor 2 | . . . . 10 Protection 6 | . 10 7 . 12 Ballistic Gun 6 | . 20 . . . Ballistic Cannon 14 | . 7 28 22 8 Special Melee Weapon 2 | . . . 5 . Peak Build Rating 42 | 6 9 9 12 42 Average Rating 14 | 3 7 9 11 34 On Entrance 7 | . 6 9 9 12 Naked Turns . | . . . . . Heaviest Build 116 | 14 93 94 92 116 Greatest Support 40 | 40 40 20 20 38 Greatest Overweight (x) 11 | 4 4 4 4 11 Average Overweight (x) 3 | 2 2 4 4 4 Largest Inventory Capacity 25 | 8 25 25 25 25 Average Capacity 22 | 7 19 25 25 25 Most Carried 25 | 8 22 22 25 25 Average Carried 18 | 5 9 22 24 21 Final Capacity 25 | 8 25 25 25 25 Final Carried 25 | 6 22 22 25 21 Class Distribution -------------------- 73% | Mutant 17% | Scavenger-Mutant 4% | Scavenger-Skirmisher Dominant Class ---------------- Mutant | -10/Materials Mutant | -10/Subcaves Mutant | -8/Scraptown Mutant | -6/Factory Resources | -11 -10 -10 -8 -6 ----------- Run | Yrd Mat Sub Scr Fac Matter Collected 557 | 184 264 . . 109 Remotely . | . . . . . Salvage Created 319 | . 278 . . 41 Parts 23 | . 20 . . 3 Haulers Intercepted 1 | . 1 . . . Recyclers Shooed . | . . . . . Parts Field Recycled . | . . . . . Retrieved Matter . | . . . . . Parts Self-Destructed . | . . . . . Prevented . | . . . . . Kills | -11 -10 -10 -8 -6 ------- Run | Yrd Mat Sub Scr Fac Combat Hostiles Destroyed 6 | . 5 . . 1 Melee 1 | . . . . 1 Guns 4 | . 4 . . . Cannons 1 | . 1 . . . Classes Destroyed 8 | . 7 . . 1 Worker 1 | . 1 . . . Hauler 1 | . 1 . . . Recycler 1 | . 1 . . . Operator 1 | . 1 . . . Watcher 1 | . 1 . . . Swarmer 3 | . 3 . . . Grunt 2 | . 2 . . . Hunter 1 | . . . . 1 Best Kill Streak 4 | . 4 . . 1 Combat Bots Only 3 | . 3 . . 1 Max Kills in Single Turn 1 | . 1 . . 1 Gunslinging . | . . . . . Exploded . | . . . . . Melee 1 | . . . . 1 Uniques/NPCs Destroyed . | . . . . . Combat | -11 -10 -10 -8 -6 -------- Run | Yrd Mat Sub Scr Fac Hostile Shots Fired 200 | . 23 1 . 176 Missed 33 | . 6 1 . 26 Hits 167 | . 17 . . 150 Projectile 167 | . 17 . . 150 Critical Strikes 1 | . . . . 1 Damage Taken 2785 | . 269 . . 2516 Core 364 | . 30 . . 334 Absorbed by Shields . | . . . . . Regen/Repaired (Parts) 50 | . 50 . . . Core Remaining (%) 94 | 100 . . 88 . Volleys Fired 35 | . 19 4 . 12 Largest 2 | . 2 2 . 2 Hottest 63 | . 50 60 . 63 Shots Fired 63 | . 38 8 . 17 Gun 36 | . 32 . . 4 Cannon 27 | . 6 8 . 13 Launcher . | . . . . . Special . | . . . . . Kinetic 63 | . 38 8 . 17 Thermal . | . . . . . Explosive . | . . . . . Electromagnetic . | . . . . . Robot Hit Streak 13 | . 13 . . 5 Robot Miss Streak 3 | . 2 . . 3 Penetration Max . | . . . . . Secondary Targets 1 | . 1 . . . Max Gunslinging Chain 1 | . 1 . . . Shots Hit Robots 47 | . 25 . 3 19 Core Hits 18 | . 14 . . 4 Critical Kills . | . . . . . Critical Parts Destroyed . | . . . . . Critical Strikes 1 | . . . . 1 Sever 1 | . . . . 1 Melee Attacks 25 | . . . 3 22 Impact . | . . . . . Slashing 22 | . . . . 22 Piercing . | . . . . . Sneak Attacks 4 | . . . 3 1 Combat Hostiles . | . . . . . Follow-up Attacks . | . . . . . Damage Inflicted 887 | . 356 . . 531 Guns 314 | . 284 . . 30 Cannons 183 | . 72 . . 111 Explosions . | . . . . . Melee 390 | . . . . 390 Ramming . | . . . . . Kinetic 497 | . 356 . . 141 Thermal . | . . . . . Explosive . | . . . . . Electromagnetic . | . . . . . Impact . | . . . . . Slashing 390 | . . . . 390 Piercing . | . . . . . Highest Corruption . | . . . . . Average Corruption . | . . . . . Corruption Purged . | . . . . . Corruption Blocked . | . . . . . Overload Shots . | . . . . . Overflow Damage 22 | . . . . 22 Projectiles . | . . . . . Explosions . | . . . . . Melee 22 | . . . . 22 Knockbacks 2 | . . . . 2 Impact . | . . . . . Kinetic 2 | . . . . 2 Secondary . | . . . . . Self-Inflicted Damage . | . . . . . Shots . | . . . . . Rammed . | . . . . . Targets Rammed . | . . . . . Kicked . | . . . . . Crushed . | . . . . . Highest Temperature 6 | . 2 . . 6 Average Temperature 2 | . 2 . . 3 Received Heat Transfer 177 | . 93 . . 84 Siege Activations . | . . . . . Martial Activations . | . . . . . Shielding Activations . | . . . . . Robots Disrupted . | . . . . . Combat Hostiles . | . . . . . Robots Corrupted . | . . . . . Combat Hostiles . | . . . . . Parts Fried . | . . . . . Impact Corruptions . | . . . . . Robots Melted . | . . . . . Combat Hostiles . | . . . . . Parts Melted . | . . . . . Heat Transferred . | . . . . . Parts Sabotaged . | . . . . . Parts Stolen . | . . . . . Parts Stripped . | . . . . . Power Chain Reactions . | . . . . . Alert | -11 -10 -10 -8 -6 ------- Run | Yrd Mat Sub Scr Fac Maximum Alert Level . | . . . . . Low Security (%) 100 | 100 100 . . 100 Level 1 . | . . . . . Level 2 . | . . . . . Level 3 . | . . . . . Level 4 . | . . . . . Level 5 . | . . . . . High Security . | . . . . . Max Security . | . . . . . Peak Influence 70 | . 70 . . 20 Initial . | . . . . . Average 9 | . 16 . . 1 Influence Increases 236 | . 177 . . 59 Destroy 0b10 Robot/C 120 | . 100 . . 20 Destroy 0b10 Robot/NC 25 | . 25 . . . Destroy Leader 34 | . 24 . . 10 Successful Hack 40 | . 28 . . 12 Disable Machine 15 | . . . . 15 Destroy Structure 2 | . . . . 2 Influence Decreases 236 | . 147 30 . 59 Entered New Map 15 | . . 15 . . Time Decay 201 | . 147 15 . 39 Lost Part 20 | . . . . 20 Squads Dispatched 2 | . . . . 2 Investigation . | . . . . . Extermination . | . . . . . Reinforcement 2 | . . . . 2 Assault . | . . . . . Garrison . | . . . . . Intercept . | . . . . . Searches Triggered . | . . . . . Construction Impeded . | . . . . . Haulers Reinforced . | . . . . . Active Scanning Responses . | . . . . . Cargo Convoy Interrupts . | . . . . . Stealth | -11 -10 -10 -8 -6 --------- Run | Yrd Mat Sub Scr Fac Distress Signals . | . . . . . Communications Jammed . | . . . . . Distress Signals . | . . . . . Times Spotted 26 | . 13 3 . 10 Peak Tracking Total 4 | . 3 3 . 4 Tactical Retreats 2 | . 1 . . 1 Traps | -11 -10 -10 -8 -6 ------- Run | Yrd Mat Sub Scr Fac Traps Triggered . | . . . . . Indirectly . | . . . . . Trap Hack Attempts . | . . . . . Triggered . | . . . . . Disarmed . | . . . . . Reprogrammed . | . . . . . Reused . | . . . . . Traps Extracted . | . . . . . Installed . | . . . . . Triggered . | . . . . . Machines | -11 -10 -10 -8 -6 ---------- Run | Yrd Mat Sub Scr Fac Machines Disabled 1 | . . . . 1 Max in Single Turn 1 | . . . . 1 Machines Repaired . | . . . . . Machines Dismantled . | . . . . . Machines Sabotaged . | . . . . . Overloaded Fab Kills . | . . . . . Hacking | -11 -10 -10 -8 -6 --------- Run | Yrd Mat Sub Scr Fac Machines Accessed 9 | . 6 . 2 1 Terminals 6 | . 5 . . 1 Fabricators . | . . . . . Repair Stations 1 | . 1 . . . Recycling Units . | . . . . . Scanalyzers . | . . . . . Garrison Access . | . . . . . Total Hacks 19 | . 13 . 2 4 Successful 9 | . 4 . 2 3 Failed 10 | . 9 . . 1 Catastrophic 3 | . 3 . . . Database Lockouts . | . . . . . Manual 7 | . 7 . . . Terminals 15 | . 11 . . 4 Fabricators . | . . . . . Repair Stations 2 | . 2 . . . Recycling Units . | . . . . . Scanalyzers . | . . . . . Garrison Access . | . . . . . Terminal Hacks 7 | . 2 . 2 3 Record 1 | . . . 1 . Prototype ID Bank 1 | . . . . 1 Branch Access Points 1 | . . . . 1 Locate Traps 1 | . . . . 1 Dispatch Records 1 | . 1 . . . Transport Status 1 | . 1 . . . Proto ID Catalog 1 | . . . 1 . Fabricator Hacks . | . . . . . Repair Station Hacks 2 | . 2 . . . Scan Component 1 | . 1 . . . Repair 1 | . 1 . . . Recycling Unit Hacks . | . . . . . Scanalyzer . | . . . . . Garrison Access Hacks . | . . . . . Unauthorized Hacks . | . . . . . Terminals . | . . . . . Fabricators . | . . . . . Repair Stations . | . . . . . Recycling Units . | . . . . . Scanalyzers . | . . . . . Garrison Access . | . . . . . Data Cores Recovered 1 | . 1 . . . Used 1 | . 1 . . . Hacking Detections 7 | . 6 . . 1 Full Trace Events . | . . . . . Feedback Events . | . . . . . Feedback Blocked . | . . . . . Robot Schematics Acquired . | . . . . . Robots Built . | . . . . . Authchips . | . . . . . Time . | . . . . . Total Robot Build Rating . | . . . . . Part Schematics Acquired . | . . . . . Parts Built . | . . . . . Authchips . | . . . . . Time . | . . . . . Total Part Build Rating . | . . . . . Parts Repaired 1 | . 1 . . . Time 26 | . 26 . . . Parts Recycled . | . . . . . Recycled Matter . | . . . . . Retrieved Matter . | . . . . . Retrieved Components . | . . . . . Parts Scanalyzed . | . . . . . Part Schematics Acquired . | . . . . . Parts Damaged . | . . . . . Bothacking | -11 -10 -10 -8 -6 ------------ Run | Yrd Mat Sub Scr Fac Used RIF Installer . | . . . . . Robots Hacked 2 | . . . 2 . Non-combat . | . . . . . Combat 2 | . . . 2 . Robot Hacks Applied 3 | . . . 3 . parse_system 3 | . . . 3 . Relay Couplers Released . | . . . . . Fabnet Peak Effective % . | . . . . . Robots Rewired . | . . . . . Allies Hacked . | . . . . . Hacks Repelled . | . . . . . Allies | -11 -10 -10 -8 -6 -------- Run | Yrd Mat Sub Scr Fac Total Allies . | . . . . . Largest Group . | . . . . . Highest-Rated Group . | . . . . . Highest-Rated Ally . | . . . . . Total Orders . | . . . . . Ally Attacks . | . . . . . Total Damage . | . . . . . Kills . | . . . . . Allies Corrupted . | . . . . . Allies Melted . | . . . . . Intel | -11 -10 -10 -8 -6 ------- Run | Yrd Mat Sub Scr Fac Active Infowar (turns) 1275 | . . 46 811 418 Sensors 413 | . . . . 413 Terrain 1064 | . . 46 811 207 Structural 227 | . . . . 227 ECM 35 | . . . . 35 Robot Analysis Total . | . . . . . Derelict Logs Recovered . | . . . . . Drone Launches . | . . . . . Drone Recoveries . | . . . . . Exploration | -11 -10 -10 -8 -6 ------------- Run | Yrd Mat Sub Scr Fac Turns Passed 2023 | 92 610 90 811 420 Spaces Moved 1124 | 40 328 37 564 155 Core 39 | 39 . . . . Treads 89 | 1 88 . . . Legs . | . . . . . Wheels 996 | . 240 37 564 155 Hover . | . . . . . Flight . | . . . . . Fastest Speed 50 | 50 140 140 140 120 Average Speed 144 | 194 145 140 140 145 Slowest Speed 250 | 250 160 140 140 245 Overloaded Moves . | . . . . . Propulsion Burnouts . | . . . . . Robots Hopped . | . . . . . Potential Cave-ins . | . . . . . Cave-ins Triggered . | . . . . . Exploration Rate (%) 21 | 6 51 3 43 5 Regions Visited 4 Branch Regions 2 Pre-discovered Areas . | . . . . . Known Exits Taken . | . . . . . Unknown Exits Taken 4 | 1 1 1 1 . Scrap Searched . | . . . . . Spaces Dug 3 | . . . . 3 Terrain Destroyed 3 | . . . . 3 Melee 3 | . . . . 3 Projectile . | . . . . . AOE . | . . . . . Terrain Rammed . | . . . . . Walls Destroyed . | . . . . . Machines Disabled . | . . . . . Actions | -11 -10 -10 -8 -6 --------- Run | Yrd Mat Sub Scr Fac Total 1425 | 53 424 66 586 296 Wait 135 | . 45 24 . 66 Move 1120 | 39 327 36 563 155 Hop . | . . . . . Pick Up 43 | 8 18 . 10 7 Fast Attach 15 | 4 3 . . 8 Attach 16 | 2 2 . . 12 Detach 5 | . 1 . . 4 Swap 13 | . 3 2 3 5 Drop 18 | . 6 . 7 5 Fire 35 | . 19 4 . 12 Melee 25 | . . . 3 22 Ram . | . . . . . Kick . | . . . . . Crush . | . . . . . Escape Stasis . | . . . . . Rewire . | . . . . . Trap . | . . . . . Miscellaneous . | . . . . . Route ------- -11/Scrapyard -10/Materials (discovered 2 exits: [*Mat] / [*Sub]) -10/Subcaves -8/Scraptown -6/Factory (discovered 4 exits: Low x2 / Ext x2) History --------- Turn | Location | Event 46 | -11/Scrapyard | Discovered new exit (range 13) 93 | -11/Scrapyard | Entered Materials 287 | -10/Materials | Repaired Ion Engine 327 | -10/Materials | Build established: Mutant 414 | -10/Materials | Discovered new exit (range 9) 498 | -10/Materials | Discovered new exit (range 16) 593 | -10/Materials | Derelicts attacked the area 703 | -10/Materials | Entered Subcaves 704 | -10/Subcaves | Approached by a straggling Scientist 772 | -10/Subcaves | Scientist uncovered a shortcut to Scraptown 793 | -10/Subcaves | Entered Scraptown 1015 | -8/Scraptown | Visited UFD Registry 1015 | -8/Scraptown | Registered with UFD as "Laserchassis" 1057 | -8/Scraptown | Visited Research Penetration Think Tank 1094 | -8/Scraptown | Visited Observation Area 1117 | -8/Scraptown | Visited Junk Repository 1150 | -8/Scraptown | Visited Science Guys 1212 | -8/Scraptown | Visited Derelict Rescue Squad 1220 | -8/Scraptown | Found DRS Beacon 1245 | -8/Scraptown | Visited Scrapoid Pod Storage 1312 | -8/Scraptown | Visited Chapter 10 1349 | -8/Scraptown | Visited Botcube Research 1355 | -8/Scraptown | Found Botcube 1506 | -8/Scraptown | Met Optimus 1506 | -8/Scraptown | Accepted into 0bPrime 1565 | -8/Scraptown | Build established: Scavenger-Mutant 1597 | -8/Scraptown | Discovered new exit (range 3) 1604 | -8/Scraptown | Entered Factory 1604 | -6/Factory | Evolved 8 slots: Power x1, Propulsion x1, Utility x6 1757 | -6/Factory | Identified exit to Lower Caves 1757 | -6/Factory | Identified exit to Extension 2024 | -6/Factory | Self-destructed Last Messages --------------- 01994_ Gauss Rifle destroyed. 01995_ Dropped DRS Beacon. 01997_ K-01 Serf collects debris. 02000_ H-66 Slayer knocked back. 02001_ K-01 Serf collects debris. 02004_ Acquired DRS Beacon. 02005_ Dropped DRS Beacon. 02006_ Acquired DRS Beacon. 02006_ K-01 Serf collects debris. 02016_ Penetrated by Slug. 02016_ Lgt. Fission Core destroyed. 02016_ Dropped DRS Beacon. 02017_ Acquired DRS Beacon. 02017_ K-01 Serf collects debris. 02018_ K-01 Serf knocked back. 02022_ Penetrated by Slug. 02022_ Lgt. Cannon destroyed. 02022_ Penetrated by Slug. 02022_ Lgt. Cannon destroyed. 02022_ Imp. Sensor Array destroyed. Map ----- +----------------------------------------------------+ | ??????## """"""" # ??? ???## ##??#??? ? ?? | | ??????## """"""" # ? ? ?#### ##?????????## | | ??????## ?"""""" # ??? ?????# #??????????? | | ??????????"??""" # ? ? ?### ##???##??#?? | | ?????????? ? # ????"?? + #???????#??? | | ?????????? ?? # ? ??????### #??????????? | | ?????????????#+###### ???"??? ??# #??????????? | | ????????????? ## ??? ??????# #??????????? | | ????????????????? ###+########## #??????????? | | ????????????????? #??????????? | | ????????????????? #??????????? | | ????????????????? """ #??????????? | | ????????????????? """ #??????????? | | ????????????????? """ #??????????? | | ?????????????????? ########""" #??????????? | | ??????????????????????????#"Y ##########?? | | ??????????????????????????#""" ^ ? | | ??????????????????????????# ? | | ??????????????????????????# ? | | ???????????????????????########## ^ ? | | ???????????????????????# # ? | | ??????????????????????## g"""" # ##########?? | | ???????????????????????k """" # #??????????? | | ???????????????????????# "" # #??????????? | | ???????????????????????# g % + + ???????? | | ???????????????????????# @ g"""# # ????? | | ???????????????????????# %R"# #? #??? | | ???????????????????????# h """# #??! #??? | | ???????????????????????# %= # #???? #??? | | ???????????????????????########## #????? ???? | | ????????????????????????????????# #??????????? | | ????????????????????????????????+ #??????????? | | ????????????????????????????????? +??????????? | | ????????????????????????????????? #??????????? | | ????????????????????????????????? #??????????? | | ????????????????????????????????? #??????????? | | ????????????????????????????????? #??????????? | | ????????????????????????????????? ???????????? | | ????????????????????????????????? ?????????????? | | ?????????????????????????????????????????????????? | | ?????????????????????????????????????????????????? | | ?????????????????????????????????????????????????? | | ?????????????????????????????????????????????????? | | ?????????????????????????????????????????????????? | | ?????????????????????????????????????????????????? | | ?????????????????????????????????????????????????? | | ?????????????????????????????????????????????????? | | ?????????????????????????????????????????????????? | | ?????????????????????????????????????????????????? | | ?????????????????????????????????????????????????? | +----------------------------------------------------+ Best States ------------- Heat Dissipation 51 Energy Generation 18 Energy Capacity 400 Matter Stores 300 Matter Capacity 300 Sight Range 16 Robot Scan Range 16 Terrain Scan Range 14 Terrain Scan Density 110 ECM Strength 2 Armor Coverage 450 Evasion (%) 40 Recoil Reduction 2 Item Schematics ----------------- None Robot Schematics ------------------ None Fabricated ------------ Nothing Repaired ---------- Ion Engine | 16% | -10/Materials Alien Tech Used ----------------- None Achievements -------------- None Challenges ------------ None Game ------ Seed GuidedGlidesysFilter Manual? 0 Play Time 00:34:43 Cumulative 85.6 hours Start 2025.07.15 @ 22:30:26 End 2025.07.16 @ 20:58:44 Sessions 2 Manual Loads 0 Difficulty Rogue Special Mode None Game No. 81 Rogue 78 Adventurer 1 Explorer 2 Win Type - Total 0 Types 0/0/0/0/0/0/0/0/0/0 Lore% 30 Gallery% 47 Achievement% 36 Wizard Run 0 Options --------- Layout 0 ASCII 0 Keyboard 0 Movement Mouse Keybinds 0 Fullscreen 2 Font 24/Smallcaps Map View 76x50 Zoom Use 0% Tactical HUD 1 Map Filters NONE Filters NONE Steam 1 RUN: ebc1349a-1ed5-4f53-a4a3-bdb436f3f524